fUSD/lending_fUSD_20251201
["ID","MTS","AMOUNT","RATE_DAILY","PERIOD"]
[395293229,1764589840340,-151.0,0.0001589,2]
[395293230,1764589840350,-151.0,0.0001589,2]
[395293231,1764589840359,-151.0,0.0001589,2]
[395293232,1764589840368,-151.0,0.0001589,2]
[395293233,1764589840382,-151.0,0.0001589,2]
[395293234,1764589840391,-151.0,0.0001589,2]
[395293235,1764589840401,-151.0,0.0001589,2]
[395293236,1764589840411,-151.0,0.0001589,2]
[395293237,1764589840422,-151.0,0.0001589,2]
[395293238,1764589840432,-151.0,0.0001589,2]
[395293239,1764589840442,-151.0,0.0001589,2]
[395293240,1764589840452,-151.0,0.0001589,2]
[395293241,1764589840462,-151.0,0.0001589,2]
[395293242,1764589840471,-151.0,0.0001589,2]
[395293243,1764589840480,-151.0,0.0001589,2]
[395293244,1764589840489,-514.84070869,0.0001589,2]
[395293245,1764589840498,-150.0,0.00015894,2]
[395293246,1764589840507,-500.0,0.00015899,2]
[395293247,1764589840516,-300.0,0.00015899,2]
[395293248,1764589840525,-300.0,0.00015899,2]
[395293249,1764589840534,-300.0,0.00015899,2]
[395293250,1764589840543,-349.89110636,0.00015899,2]
[395293251,1764589840552,-500.0,0.00015899,2]
[395293252,1764589840561,-500.0,0.00015899,2]
[395293253,1764589840570,-500.0,0.00015899,2]
[395293254,1764589840579,-1000.0,0.000159,2]
[395293255,1764589840588,-272.79271334,0.000159,2]
[395293256,1764589840597,-430.2573,0.000159,2]
[395293257,1764589840606,-155.14228073,0.000159,2]
[395293258,1764589840615,-1402.6474307,0.000159,2]
[395293259,1764589840624,-1211.55404386,0.000159,2]
[395293260,1764589840634,-1211.55404386,0.000159,2]
[395293261,1764589840643,-200.0,0.000159,2]
[395293262,1764589840651,-150.0,0.00015913,2]
[395293263,1764589840660,-151.0,0.00015921,2]
[395293264,1764589840669,-161.38,0.00015923,2]
[395293265,1764589840679,-202702.85846358,0.00015924,2]
[395293266,1764589840688,-150.0,0.00015937,2]
[395293267,1764589840696,-1400.0,0.00015945,2]
[395293268,1764589840705,-150.0,0.00015955,2]
[395293269,1764589840715,-150.0,0.00015967,2]
[395293270,1764589840724,-150.0,0.00015967,2]
[395293271,1764589840733,-11978.0,0.00015981,2]
[395293272,1764589840742,-500.0,0.00015987,2]
[395293273,1764589840751,-500.0,0.00015987,2]
[395293274,1764589840760,-500.0,0.00015987,2]
[395293275,1764589840769,-150.0,0.00015987,2]
[395293276,1764589840778,-500.0,0.00015987,2]
[395293277,1764589840787,-500.0,0.00015987,2]
[395293278,1764589840796,-150.57489667,0.00015987,2]
[395293279,1764589840804,-150.0,0.00015987,2]
[395293280,1764589840813,-500.0,0.00015987,2]
[395293281,1764589840823,-150.0,0.00015987,2]
[395293282,1764589840832,-703.0,0.00015987,2]
[395293283,1764589840841,-150.0,0.00015987,2]
[395293284,1764589840849,-150.0,0.00015987,2]
[395293285,1764589840858,-150.0,0.00015987,2]
[395293286,1764589840868,-150.0,0.00015995,2]
[395293287,1764589840877,-151.0,0.00015997,2]
[395293288,1764589840886,-151.0,0.00015997,2]
[395293289,1764589840894,-151.0,0.00015997,2]
[395293290,1764589840904,-19036.28777013,0.00015999,2]
[395293291,1764589840913,-520.83324818,0.00015999,2]
[395293292,1764589840923,-966126.48221384,0.00016,4]
[395293293,1764589840932,-63248.7777576,0.00016,2]
[395293294,1764589840941,-203.21005839,0.00016,2]
[395293295,1764589840950,-1000.0,0.00016,2]
[395293296,1764589840960,-658.2817103,0.00016,2]
[395293297,1764589840969,-1400.0,0.00016,2]
[395293298,1764589840978,-150.0,0.00016003,2]
[395293299,1764589840987,-150.0,0.00016016,2]
[395293300,1764589840996,-6164.0,0.00016027,2]
[395293301,1764589841005,-200.0,0.00016035,2]
[395293302,1764589841015,-200.0,0.00016035,2]
[395293303,1764589841024,-151.0,0.00016035,2]
[395293304,1764589841033,-620.0,0.00016035,2]
[395293305,1764589841042,-500.0,0.00016035,2]
[395293306,1764589841051,-442.71974365,0.00016035,2]
[395293307,1764589841060,-150.0,0.00016037,2]
[395293308,1764589841069,-483.0,0.00016046,2]
[395293309,1764589841078,-1400.0,0.00016055,2]
[395293310,1764589841087,-150.0,0.00016076,2]
[395293311,1764589841096,-150.0,0.0001608,2]
[395293312,1764589841105,-150.0,0.00016087,2]
[395293313,1764589841114,-150.0,0.00016087,2]
[395293314,1764589841123,-150.0,0.00016092,2]
[395293315,1764589841132,-1000.0,0.000161,2]
[395293316,1764589841142,-1000.0,0.000161,2]
[395293317,1764589841152,-1427.0,0.000161,2]
[395293318,1764589841161,-1000.0,0.000161,2]
[395293319,1764589841170,-1000.0,0.000161,2]
[395293320,1764589841179,-1000.0,0.000161,2]
[395293321,1764589841190,-1000.0,0.000161,2]
[395293322,1764589841199,-1232.02,0.0001611,2]
[395293323,1764589841207,-483.0,0.0001611,2]
[395293324,1764589841218,-1400.0,0.0001611,2]
[395293325,1764589841227,-9999.99,0.00016116,2]
[395293326,1764589841238,-500.0,0.00016124,2]
[395293327,1764589841248,-500.0,0.00016124,2]
[395293328,1764589841256,-500.0,0.00016124,2]
[395293329,1764589841266,-150.0,0.00016124,2]
[395293330,1764589841276,-500.0,0.00016124,2]
[395293331,1764589841286,-500.0,0.00016124,2]
[395293332,1764589841295,-250.0,0.00016124,2]
[395293333,1764589841303,-500.0,0.00016124,2]
[395293334,1764589841313,-150.0,0.00016124,2]
[395293335,1764589841323,-703.0,0.00016124,2]
[395293336,1764589841332,-150.0,0.00016124,2]
[395293337,1764589841341,-150.0,0.00016137,2]
[395293338,1764589841350,-150.0,0.00016137,2]
[395293339,1764589841359,-150.0,0.00016137,2]
[395293340,1764589841369,-150.0,0.00016137,2]
[395293341,1764589841382,-150.0,0.00016137,2]
[395293342,1764589841391,-500.0,0.00016148,2]
[395293343,1764589841400,-500.0,0.00016148,2]
[395293344,1764589841409,-1400.0,0.00016165,2]
[395293345,1764589841420,-483.0,0.00016173,2]
[395293346,1764589841429,-483.0,0.00016178,2]
[395293347,1764589841438,-150.0,0.00016182,2]
[395293348,1764589841448,-150.0,0.00016187,2]
[395293349,1764589841459,-150.0,0.00016187,2]
[395293350,1764589841470,-150.0,0.00016194,2]
[395293351,1764589841479,-150.0,0.00016198,2]
[395293352,1764589841490,-5000.00257072,0.000162,5]
[395293353,1764589841500,-483.0,0.00016205,2]
[395293354,1764589841509,-483.0,0.00016209,2]
[395293355,1764589841517,-1400.0,0.0001622,2]
[395293356,1764589841526,-483.0,0.00016225,2]
[395293357,1764589841535,-155.1422807,0.00016233,2]
[395293358,1764589841544,-150.0,0.00016237,2]
[395293359,1764589841553,-150.0,0.00016258,2]
[395293360,1764589841562,-500.0,0.00016261,2]
[395293361,1764589841571,-500.0,0.00016261,2]
[395293362,1764589841582,-500.0,0.00016261,2]
[395293363,1764589841592,-150.0,0.00016261,2]
[395293364,1764589841603,-500.0,0.00016261,2]
[395293365,1764589841615,-500.0,0.00016261,2]
[395293366,1764589841625,-300.0,0.00016261,2]
[395293367,1764589841634,-272.0,0.00016261,2]
[395293368,1764589841643,-703.0,0.00016261,2]
[395293369,1764589841652,-150.0,0.00016261,2]
[395293370,1764589841662,-1485.83735201,0.00016262,2]
[395293371,1764589841672,-150.0,0.00016271,2]
[395293372,1764589841681,-1400.0,0.00016275,2]
[395293373,1764589841692,-150.0,0.00016279,2]
[395293374,1764589841701,-483.0,0.00016279,2]
[395293375,1764589841710,-151.0,0.00016286,2]
[395293376,1764589841719,-150.0,0.00016287,2]
[395293377,1764589841729,-150.0,0.00016287,2]
[395293378,1764589841738,-603.2435,0.00016298,2]
[395293379,1764589841747,-1000.0,0.000163,2]
[395293380,1764589841756,-1000.0,0.000163,2]
[395293381,1764589841765,-1000.0,0.000163,2]
[395293382,1764589841774,-1000.0,0.000163,2]
[395293383,1764589841783,-1000.0,0.000163,2]
[395293384,1764589841793,-1000.0,0.000163,2]
[395293385,1764589841802,-1000.0,0.000163,2]
[395293386,1764589841810,-1000.0,0.000163,2]
[395293387,1764589841820,-150.0,0.00016307,2]
[395293388,1764589841830,-150.0,0.00016307,2]
[395293389,1764589841840,-483.0,0.00016311,2]
[395293390,1764589841850,-150.0,0.00016319,2]
[395293391,1764589841859,-483.0,0.00016325,2]
[395293392,1764589841869,-1400.0,0.0001633,2]
[395293393,1764589841878,-150.0,0.00016337,2]
[395293394,1764589841889,-200.0,0.0001634,2]
[395293395,1764589841898,-150.0,0.0001636,2]
[395293396,1764589841907,-483.0,0.00016364,2]
[395293397,1764589841917,-483.0,0.00016376,2]
[395293398,1764589841927,-150.0,0.0001638,2]
[395293399,1764589841936,-1232.02,0.00016384,2]
[395293400,1764589841946,-1400.0,0.00016385,2]
[395293401,1764589841955,-150.0,0.00016387,2]
[395293402,1764589841964,-150.0,0.00016387,2]
[395293403,1764589841973,-220.065121,0.00016387,2]
[395293404,1764589841983,-246.55,0.00016394,2]
[395293405,1764589841995,-500.0,0.00016398,2]
[395293406,1764589842006,-500.0,0.00016398,2]
[395293407,1764589842015,-500.0,0.00016398,2]
[395293408,1764589842024,-150.0,0.00016398,2]
[395293409,1764589842033,-500.0,0.00016398,2]
[395293410,1764589842042,-500.0,0.00016398,2]
[395293411,1764589842051,-703.0,0.00016398,2]
[395293412,1764589842060,-234.216869,0.00016398,2]
[395293413,1764589842069,-1000.0,0.00016398,2]
[395293414,1764589842078,-280.35705212,0.00016398,2]
[395293415,1764589842087,-1003.03874905,0.00016398,2]
[395293416,1764589842096,-839.96710079,0.00016398,2]
[395293417,1764589842105,-1000.0,0.00016398,2]
[395293418,1764589842114,-570.14905858,0.00016398,2]
[395293419,1764589842124,-1000.0,0.00016398,2]
[395293420,1764589842133,-1000.0,0.00016398,2]
[395293421,1764589842143,-1000.0,0.00016398,2]
[395293422,1764589842152,-500.0,0.00016398,2]
[395293423,1764589842162,-500.0,0.00016398,2]
[395293424,1764589842171,-1000.0,0.00016398,2]
[395293425,1764589842180,-1000.0,0.00016398,2]
[395293426,1764589842190,-1000.0,0.00016398,2]
[395293427,1764589842199,-1000.0,0.00016398,2]
[395293428,1764589842209,-707.34062351,0.00016398,2]
[395293429,1764589842218,-1000.0,0.00016398,2]
[395293430,1764589842228,-1000.0,0.00016398,2]
[395293431,1764589842238,-500.45943647,0.00016398,2]
[395293432,1764589842247,-1000.0,0.00016398,2]
[395293433,1764589842257,-1000.0,0.00016398,2]
[395293434,1764589842266,-1000.0,0.00016398,2]
[395293435,1764589842276,-501.4742826,0.00016398,2]
[395293436,1764589842286,-1007.04514644,0.00016398,2]
[395293437,1764589842297,-570.07624851,0.00016398,2]
[395293438,1764589842306,-1000.0,0.00016398,2]
[395293439,1764589842316,-1000.0,0.00016398,2]
[395293440,1764589842325,-1000.0,0.00016398,2]
[395293441,1764589842335,-453.79493009,0.00016398,2]
[395293442,1764589842344,-1000.0,0.00016398,2]
[395293443,1764589842354,-1000.0,0.00016398,2]
[395293444,1764589842364,-534.66515965,0.00016398,2]
[395293445,1764589842374,-500.0,0.00016398,2]
[395293446,1764589842388,-356.06806903,0.00016398,2]
[395293447,1764589842398,-227.0,0.000164,2]
[395293448,1764589842408,-318.0,0.000164,2]
[395293449,1764589842417,-182.0,0.000164,2]
[395293450,1764589842428,-183.27980192,0.000164,2]
[395293451,1764589842437,-1402.6474307,0.000164,2]
[395293452,1764589842446,-2612.61819262,0.00016411,2]
[395293453,1764589842455,-150.0,0.0001642,2]
[395293454,1764589842465,-150.0,0.0001642,2]
[395293455,1764589842475,-150.0,0.0001642,2]
[395293456,1764589842484,-150.0,0.0001642,2]
[395293457,1764589842493,-150.0,0.00016437,2]
[395293458,1764589842503,-150.0,0.00016438,2]
[395293459,1764589842513,-582.21570737,0.00016438,2]
[395293460,1764589842523,-582.21570737,0.00016438,2]
[395293461,1764589842532,-582.21570737,0.00016438,2]
[395293462,1764589842541,-582.21570737,0.00016438,2]
[395293463,1764589842550,-582.21570737,0.00016438,2]
[395293464,1764589842559,-582.21570737,0.00016438,2]
[395293465,1764589842569,-582.21570737,0.00016438,2]
[395293466,1764589842579,-582.21570737,0.00016438,2]
[395293467,1764589842589,-582.21570737,0.00016438,2]
[395293468,1764589842599,-582.21570737,0.00016438,2]
[395293469,1764589842608,-582.21570737,0.00016438,2]
[395293470,1764589842617,-582.21570737,0.00016438,2]
[395293471,1764589842627,-582.21570737,0.00016438,2]
[395293472,1764589842638,-582.21570737,0.00016438,2]
[395293473,1764589842647,-582.21570737,0.00016438,2]
[395293474,1764589842657,-582.21570737,0.00016438,2]
[395293475,1764589842666,-582.21570737,0.00016438,2]
[395293476,1764589842675,-582.21570737,0.00016438,2]
[395293477,1764589842684,-582.21570737,0.00016438,2]
[395293478,1764589842693,-582.21570737,0.00016438,2]
[395293479,1764589842702,-582.21570737,0.00016438,2]
[395293480,1764589842712,-582.21570737,0.00016438,2]
[395293481,1764589842721,-582.21570737,0.00016438,2]
[395293482,1764589842730,-582.21570737,0.00016438,2]
[395293483,1764589842740,-582.21570737,0.00016438,2]
[395293484,1764589842749,-582.21570737,0.00016438,2]
[395293485,1764589842758,-582.21570737,0.00016438,2]
[395293486,1764589842767,-582.21570737,0.00016438,2]
[395293487,1764589842777,-582.21570737,0.00016438,2]
[395293488,1764589842786,-582.21570737,0.00016438,2]
[395293489,1764589842795,-582.21570737,0.00016438,2]
[395293490,1764589842805,-582.21570737,0.00016438,2]
[395293491,1764589842814,-582.21570737,0.00016438,2]
[395293492,1764589842823,-582.21570737,0.00016438,2]
[395293493,1764589842832,-582.21570737,0.00016438,2]
[395293494,1764589842842,-582.21570737,0.00016438,2]
[395293495,1764589842851,-582.21570737,0.00016438,2]
[395293496,1764589842860,-582.21570737,0.00016438,2]
[395293497,1764589842870,-582.21570737,0.00016438,2]
[395293498,1764589842880,-582.21570737,0.00016438,2]
[395293499,1764589842890,-582.21570737,0.00016438,2]
[395293500,1764589842899,-582.21570737,0.00016438,2]
[395293501,1764589842908,-582.21570737,0.00016438,2]
[395293502,1764589842918,-582.21570737,0.00016438,2]
[395293503,1764589842928,-582.21570737,0.00016438,2]
[395293504,1764589842938,-582.21570737,0.00016438,2]
[395293505,1764589842947,-582.21570737,0.00016438,2]
[395293506,1764589842957,-582.21570737,0.00016438,2]
[395293507,1764589842966,-582.21570737,0.00016438,2]
[395293508,1764589842975,-582.21570737,0.00016438,2]
[395293509,1764589842985,-582.21570737,0.00016438,2]
[395293510,1764589842994,-582.21570737,0.00016438,2]
[395293511,1764589843003,-582.21570737,0.00016438,2]
[395293512,1764589843013,-582.21570737,0.00016438,2]
[395293513,1764589843023,-582.21570737,0.00016438,2]
[395293514,1764589843032,-582.21570737,0.00016438,2]
[395293515,1764589843042,-582.21570737,0.00016438,2]
[395293516,1764589843051,-582.21570737,0.00016438,2]
[395293521,1764589843262,-582.21570737,0.00016438,2]
[395293522,1764589843300,-582.21570737,0.00016438,2]
[395293523,1764589843309,-582.21570737,0.00016438,2]
[395293524,1764589843319,-582.21570737,0.00016438,2]
[395293525,1764589843328,-582.21570737,0.00016438,2]
[395293526,1764589843338,-582.21570737,0.00016438,2]
[395293527,1764589843347,-582.21570737,0.00016438,2]
[395293528,1764589843357,-582.21570737,0.00016438,2]
[395293529,1764589843367,-582.21570737,0.00016438,2]
[395293530,1764589843378,-582.21570737,0.00016438,2]
[395293531,1764589843390,-582.21570737,0.00016438,2]
[395293532,1764589843399,-582.21570737,0.00016438,2]
[395293533,1764589843408,-582.21570737,0.00016438,2]
[395293534,1764589843419,-9785.45,0.00016438,2]
[395293535,1764589843429,-225.2,0.00016438,2]
[395293536,1764589843438,-236.31,0.00016438,2]
[395293537,1764589843448,-12938.74,0.00016438,2]
[395293538,1764589843459,-217.40010715,0.00016438,2]
[395293539,1764589843469,-800.0,0.00016438,2]
[395293540,1764589843478,-151.0,0.00016438,2]
[395293541,1764589843488,-151.0,0.00016438,2]
[395293542,1764589843498,-533.88981491,0.00016438,2]
[395293543,1764589843507,-150.0,0.0001644,2]
[395293544,1764589843516,-1400.0,0.0001644,2]
[395293545,1764589843526,-150.0,0.0001645,2]
[395293546,1764589843535,-198.73,0.00016464,2]
[395293547,1764589843544,-483.0,0.00016467,2]
[395293548,1764589843553,-483.0,0.00016478,2]
[395293549,1764589843562,-150.0,0.00016487,2]
[395293550,1764589843570,-150.0,0.00016487,2]
[395293551,1764589843579,-483.0,0.00016494,2]
[395293552,1764589843588,-1400.0,0.00016495,2]
[395293553,1764589843598,-779.0,0.000165,2]
[395293554,1764589843607,-150.0,0.00016501,2]
[395293555,1764589843617,-2612.61819262,0.00016533,2]
[395293556,1764589843627,-150.0,0.00016533,2]
[395293557,1764589843636,-500.0,0.00016535,2]
[395293558,1764589843645,-500.0,0.00016535,2]
[395293559,1764589843655,-500.0,0.00016535,2]
[395293560,1764589843664,-250.0,0.00016535,2]
[395293561,1764589843673,-500.0,0.00016535,2]
[395293562,1764589843682,-228.69983249,0.00016535,2]
[395293563,1764589843692,-703.0,0.00016535,2]
[395293564,1764589843701,-150.0,0.00016537,2]
[395293565,1764589843711,-150.0,0.00016539,2]
[395293566,1764589843720,-1400.0,0.0001655,2]
[395293567,1764589843730,-150.0,0.00016562,2]
[395293568,1764589843739,-150.0,0.00016562,2]
[395293569,1764589843749,-150.0,0.00016562,2]
[395293570,1764589843758,-166.66,0.00016566,2]
[395293571,1764589843767,-166.67,0.00016566,2]
[395293572,1764589843776,-155.1422807,0.00016567,2]
[395293573,1764589843785,-150.0,0.00016575,2]
[395293574,1764589843794,-222.35215359,0.00016583,2]
[395293575,1764589843803,-642.94,0.00016583,2]
[395293576,1764589843812,-500.0,0.00016583,2]
[395293577,1764589843821,-150.0,0.00016587,2]
[395293578,1764589843830,-150.0,0.00016587,2]
[395293579,1764589843839,-525.37622561,0.00016588,2]
[395293580,1764589843848,-500.0,0.00016588,2]
[395293581,1764589843857,-165.59,0.00016601,2]
[395293582,1764589843867,-1400.0,0.00016605,2]
[395293583,1764589843876,-483.0,0.00016609,2]
[395293584,1764589843886,-150.0,0.00016622,2]
[395293585,1764589843895,-150.0,0.00016629,2]
[395293586,1764589843903,-11342.96089445,0.00016631,2]
[395293587,1764589843912,-150.0,0.00016637,2]
[395293588,1764589843922,-150.0,0.00016647,2]
[395293589,1764589843931,-150.0,0.00016647,2]
[395293590,1764589843940,-2612.61819262,0.00016656,2]
[395293591,1764589843950,-1232.02,0.00016658,2]
[395293592,1764589843959,-500.0,0.00016672,2]
[395293593,1764589843968,-500.0,0.00016672,2]
[395293594,1764589843978,-500.0,0.00016672,2]
[395293595,1764589843987,-500.0,0.00016672,2]
[395293596,1764589843997,-703.0,0.00016672,2]
[395293597,1764589844006,-150.0,0.00016683,2]
[395293598,1764589844015,-150.0,0.00016687,2]
[395293599,1764589844024,-150.0,0.00016687,2]
[395293600,1764589844034,-150.0,0.00016703,2]
[395293601,1764589844044,-150.0,0.00016703,2]
[395293602,1764589844053,-176.06,0.00016712,2]
[395293603,1764589844062,-150.0,0.00016718,2]
[395293604,1764589844071,-150.0,0.00016737,2]
[395293605,1764589844081,-1000.0,0.0001674,2]
[395293606,1764589844091,-150.0,0.00016744,2]
[395293607,1764589844100,-150.0,0.0001676,2]
[395293608,1764589844110,-2612.61819262,0.00016778,2]
[395293609,1764589844121,-150.0,0.00016786,2]
[395293610,1764589844131,-150.0,0.00016786,2]
[395293611,1764589844140,-150.0,0.00016804,2]
[395293612,1764589844149,-150.0,0.00016807,2]
[395293613,1764589844161,-500.0,0.00016809,2]
[395293614,1764589844172,-500.0,0.00016809,2]
[395293615,1764589844181,-500.0,0.00016809,2]
[395293616,1764589844190,-500.0,0.00016809,2]
[395293617,1764589844200,-703.0,0.00016809,2]
[395293618,1764589844210,-150.0,0.00016836,2]
[395293619,1764589844219,-150.0,0.00016845,2]
[395293620,1764589844229,-198.73,0.00016852,2]
[395293621,1764589844239,-213.0,0.00016856,2]
[395293622,1764589844248,-200.0,0.00016863,2]
[395293623,1764589844259,-2000.0,0.00016864,2]
[395293624,1764589844268,-200.0,0.00016864,2]
[395293625,1764589844278,-200.0,0.00016864,2]
[395293626,1764589844287,-150.0,0.00016865,2]
[395293627,1764589844298,-150.0,0.00016873,2]
[395293628,1764589844308,-150.0,0.00016886,2]
[395293629,1764589844318,-150.0,0.00016886,2]
[395293630,1764589844327,-150.0,0.00016897,2]
[395293631,1764589844337,-2612.61819262,0.000169,2]
[395293632,1764589844346,-1402.6474307,0.000169,2]
[395293633,1764589844356,-663.95450204,0.000169,2]
[395293634,1764589844366,-455.22305001,0.000169,2]
[395293635,1764589844377,-150.0,0.00016926,2]
[395293636,1764589844388,-1232.02,0.00016932,2]
[395293637,1764589844399,-150.0,0.00016936,2]
[395293638,1764589844409,-500.0,0.00016946,2]
[395293639,1764589844419,-500.0,0.00016946,2]
[395293640,1764589844429,-500.0,0.00016946,2]
[395293641,1764589844439,-500.0,0.00016946,2]
[395293642,1764589844448,-703.0,0.00016946,2]
[395293643,1764589844459,-500.62734798,0.00016946,2]
[395293644,1764589844468,-1000.74233697,0.00016946,2]
[395293645,1764589844476,-1500.0,0.00016946,2]
[395293646,1764589844486,-500.70186377,0.00016946,2]
[395293647,1764589844494,-503.91137404,0.00016946,2]
[395293648,1764589844504,-1500.0,0.00016946,2]
[395293649,1764589844513,-1016.50455865,0.00016946,2]
[395293650,1764589844522,-1500.0,0.00016946,2]
[395293651,1764589844531,-388.21665271,0.00016946,2]
[395293652,1764589844540,-938.4223103,0.00016946,2]
[395293653,1764589844549,-1000.95083099,0.00016946,2]
[395293654,1764589844558,-713.79343577,0.00016946,2]
[395293655,1764589844568,-1500.0,0.00016946,2]
[395293656,1764589844576,-1055.00053518,0.00016946,2]
[395293657,1764589844586,-506.88790336,0.00016946,2]
[395293658,1764589844595,-771.24315862,0.00016946,2]
[395293659,1764589844604,-205.64700195,0.00016986,2]
[395293660,1764589844613,-150.0,0.00016986,2]
[395293661,1764589844622,-150.0,0.00016986,2]
[395293662,1764589844632,-274.47530505,0.00016986,2]
[395293663,1764589844641,-150.0,0.00016986,2]
[395293664,1764589844650,-157.11036066,0.00016986,2]
[395293665,1764589844659,-150.00000001,0.00016986,2]
[395293666,1764589844668,-150.0,0.00016986,2]
[395293667,1764589844677,-150.0,0.00016986,2]
[395293668,1764589844686,-150.0,0.00016986,2]
[395293669,1764589844695,-150.0,0.00016986,2]
[395293670,1764589844704,-151.0,0.00016986,2]
[395293671,1764589844713,-553.64373807,0.00016986,2]
[395293672,1764589844722,-151.0,0.00016996,2]
[395293673,1764589844731,-151.0,0.00016997,2]
[395293674,1764589844740,-203.7124141,0.00016997,2]
[395293675,1764589844749,-500.0,0.00016999,2]
[395293676,1764589844758,-500.0,0.00016999,2]
[395293677,1764589844767,-500.0,0.00016999,2]
[395293678,1764589844776,-500.0,0.00016999,2]
[395293679,1764589844785,-559.73089187,0.00016999,2]
[395293680,1764589844795,-500.0,0.00016999,2]
[395293681,1764589844804,-500.0,0.00016999,2]
[395293682,1764589844812,-500.0,0.00016999,2]
[395293683,1764589844822,-202.37,0.00016999,2]
[395293684,1764589844830,-500.0,0.00016999,2]
[395293685,1764589844839,-500.0,0.00016999,2]
[395293686,1764589844848,-500.0,0.00016999,2]
[395293687,1764589844857,-500.0,0.00016999,2]
[395293688,1764589844866,-500.0,0.00016999,2]
[395293689,1764589844875,-500.0,0.00016999,2]
[395293690,1764589844884,-500.0,0.00016999,2]
[395293691,1764589844893,-523.35292461,0.00016999,2]
[395293692,1764589844902,-500.0,0.00016999,2]
[395293693,1764589844911,-500.0,0.00016999,2]
[395293694,1764589844919,-500.0,0.00016999,2]
[395293695,1764589844928,-300.0,0.00016999,2]
[395293696,1764589844937,-300.0,0.00016999,2]
[395293697,1764589844946,-300.0,0.00016999,2]
[395293698,1764589844954,-420918.95934299,0.00017,2]
[395293699,1764589844969,-1635.61141169,0.00017,2]
[395293700,1764589844980,-1054.27442032,0.00017,2]
[395293701,1764589845384,-340.981756,0.0001585,2]
[395293704,1764589846803,-159.018244,0.0001585,2]
[395293705,1764589846813,-500.0,0.0001585,2]
[395293706,1764589846822,-500.0,0.00015987,2]
[395293707,1764589846832,-500.0,0.00016124,2]
[395293708,1764589846841,-319.01867894,0.00016261,2]
[395293709,1764589846851,-502.81238066,0.00016398,2]
[395293710,1764589846860,-595551.9400339,0.00017,2]
[395293711,1764589846870,-4202.51708166,0.00017,15]
[395293713,1764589846879,-512.75783,0.00017,2]
[395293715,1764589846888,-926112.92734996,0.00017,2]
[395293719,1764589846921,-1735.60041391,0.00017,2]
[395293725,1764589897854,500.0,0.000145,4]
[395293761,1764590736198,160.66,0.00011793,2]
[395293806,1764590917510,4966.0,0.00022,30]
[395293860,1764591032231,-500.0,0.00012873,2]
[395293861,1764591032241,-1000.0,0.00013421,2]
[395293862,1764591032250,-265.22784662,0.00013699,2]
[395293863,1764591032262,-734.77215338,0.00013699,2]
[395293864,1764591032272,-121.86675798,0.00013699,2]
[395293865,1764591032284,-78.13324202,0.00013699,2]
[395293866,1764591032293,-300.0,0.00013732,2]
[395293867,1764591032303,-300.0,0.00013764,2]
[395293868,1764591032313,-125.17208548,0.0001383,2]
[395293869,1764591032347,-69.82791452,0.0001383,2]
[395293870,1764591032356,-277.15678478,0.00013931,2]
[395293871,1764591032367,-22.84321522,0.00013931,2]
[395293872,1764591032376,-166.66,0.00014004,2]
[395293873,1764591032385,-195.0,0.00014173,2]
[395293874,1764591032394,-2413.25,0.00014228,2]
[395293875,1764591032404,-166.66,0.00014299,2]
[395293876,1764591032413,-166.66,0.00014594,2]